bitfinex/quotes_ETHUSD_20241105
["timestamp","ask_amount","ask_price","bid_price","bid_amount"]
[1730820407581,4.08485,2448.1,2447.4,4.0858]
[1730820407897,4.08485,2448.1,2446.7,4.08713]
[1730820407898,0.8298,2448.0,2447.3,0.8184]
[1730820408221,0.8298,2448.0,2447.7,4.08541]
[1730820408408,0.8298,2448.0,2447.6,4.08552]
[1730820408778,0.8298,2448.0,2447.6,8.17106]
[1730820408977,0.8298,2448.0,2447.7,0.07672991]
[1730820409675,0.7961,2448.3,2447.7,0.07672991]
[1730820410018,0.7961,2448.6,2448.1,4.0847]
[1730820410180,4.0842,2448.5,2447.9,4.08504]
[1730820410378,0.48803,2448.4,2447.9,4.08504]
[1730820410906,0.48803,2448.4,2448.0,0.07640261]
[1730820411618,0.48803,2448.4,2448.0,4.16123261]
[1730820411781,0.48803,2448.4,2448.1,4.08477]
[1730820412205,0.7961,2448.6,2448.1,4.16097352]
[1730820413018,4.88016,2448.6,2448.1,0.07629352]
[1730820413187,4.08418,2448.5,2447.9,4.08501]
[1730820413396,4.08418,2448.5,2448.2,0.07618445]
[1730820413633,4.08446,2448.3,2447.7,4.08542]
[1730820413919,4.08442,2448.4,2447.7,4.08542]
[1730820413920,5.451538,2448.2,2447.7,4.08542]
[1730820414121,5.451538,2448.2,2447.5,4.08571]
[1730820414280,5.451538,2448.2,2447.4,4.08586]
[1730820414281,4.08497,2448.0,2447.4,4.08586]
[1730820414487,4.08497,2448.0,2447.5,4.08568]
[1730820414683,4.08497,2448.0,2447.4,8.17173]
[1730820414884,0.490697,2447.9,2447.4,4.08586]
[1730820415620,0.490697,2447.9,2447.5,4.08579]
[1730820415782,0.490697,2447.9,2447.4,4.08586]
[1730820415987,0.490697,2447.9,2447.5,4.08578]
[1730820416207,0.490697,2447.9,2447.4,4.08586]
[1730820416443,0.4575667,2447.8,2446.9,4.08676]
[1730820416784,0.4575667,2447.8,2447.4,4.08587]
[1730820417182,0.4575667,2447.8,2447.3,4.08612]
[1730820417482,0.4575667,2447.8,2447.2,4.08622]
[1730820417711,0.45427767,2447.7,2447.4,4.08596]
[1730820418216,0.4575667,2447.8,2447.4,4.08596]
[1730820418587,0.4575667,2447.8,2447.4,8.17184]
[1730820418787,0.4575667,2447.8,2447.4,4.08588]
[1730820419221,0.822,2448.1,2447.0,0.081719]
[1730820419524,0.822,2448.1,2447.7,4.08537]
[1730820419706,4.08438,2448.4,2447.7,4.08534]
[1730820419707,4.08439,2448.4,2447.7,4.08534]
[1730820419910,4.08439,2448.4,2447.8,4.08521]
[1730820419911,4.0843,2448.4,2447.8,4.08521]
[1730820420080,0.489739,2448.3,2447.8,8.17042]
[1730820420289,0.489739,2448.3,2447.8,8.17041]
[1730820420480,0.813,2448.5,2447.3,3.7944]
[1730820420731,4.08438,2448.4,2447.9,4.0851]
[1730820421086,4.08438,2448.4,2447.8,4.08518]
[1730820421289,0.813,2448.5,2448.1,4.08467]
[1730820421488,5.06914352,2448.9,2448.3,8.16873]
[1730820421489,0.7627,2448.8,2448.3,8.16873]
[1730820421794,5.06914352,2448.9,2448.6,4.08394]
[1730820421795,0.98558352,2448.9,2448.6,4.08394]
[1730820422297,0.98558352,2448.9,2448.8,4.08363]
[1730820422504,4.09154,2450.1,2449.4,4.08261]
[1730820422505,0.8285,2450.0,2449.4,4.08261]
[1730820422813,0.8285,2450.0,2449.6,4.08218]
[1730820423013,0.8285,2450.0,2449.2,0.7695]
[1730820423014,0.0600634,2450.2,2449.9,4.08177]
[1730820423321,0.0600634,2450.2,2449.6,4.08216]
[1730820423487,0.0600634,2450.2,2449.8,4.08192]
[1730820423686,0.0600634,2450.2,2449.9,4.08175]
[1730820423921,0.0600634,2450.2,2450.0,4.08157]
[1730820424126,0.0600634,2450.2,2450.0,4.15419117]
[1730820424334,0.0600634,2450.2,2450.1,4.08146]
[1730820424690,0.0600634,2450.2,2450.1,0.07251226]
[1730820425091,0.0600634,2450.2,2449.8,4.08186]
[1730820425515,0.0600634,2450.2,2449.9,4.15332241]
[1730820425696,0.0600634,2450.2,2450.0,4.0816]
[1730820426232,0.0600634,2450.2,2450.1,0.07122181]
[1730820426601,0.0600634,2450.2,2449.6,4.08218]
[1730820426846,0.0600634,2450.2,2450.1,0.07122181]
[1730820427028,0.0600634,2450.2,2449.8,4.08188]
[1730820427227,0.0600634,2450.2,2450.0,4.08161]
[1730820427403,0.0600634,2450.2,2449.9,4.08174]
[1730820427740,0.0600634,2450.2,2450.1,0.07122181]
[1730820427949,0.0600634,2450.2,2450.0,4.15295071]
[1730820428112,0.0600634,2450.2,2450.1,0.07122181]
[1730820428495,0.0600634,2450.2,2449.7,4.08199]
[1730820428740,0.0600634,2450.2,2450.1,0.07122181]
[1730820428950,0.0600634,2450.2,2449.5,0.758]
[1730820429145,4.0819,2449.9,2449.2,8.16572]
[1730820429346,4.08174,2450.0,2449.2,4.08286]
[1730820429509,4.08174,2450.0,2449.4,4.08261]
[1730820429710,4.08199,2449.8,2449.1,0.7806]
[1730820430823,8.1641,2449.8,2449.1,0.7806]
[1730820431319,4.571644,2449.9,2449.2,4.16446998]
[1730820431520,4.571644,2449.9,2449.2,4.08282]
[1730820431844,4.08222,2449.7,2449.1,4.86372]
[1730820432041,0.408222,2449.6,2449.1,0.7806]
[1730820432355,0.767,2449.5,2448.7,0.7995]
[1730820432645,0.767,2449.5,2449.0,4.08319]
[1730820432952,0.767,2449.5,2448.7,0.7995]
[1730820432953,4.08274,2449.4,2448.7,4.8832]
[1730820433148,4.08274,2449.4,2448.8,4.0836]
[1730820433453,8.573022,2449.6,2448.9,4.08339]
[1730820433656,4.490592,2449.6,2449.0,8.16637]
[1730820433810,0.408222,2449.6,2448.8,4.08353]
[1730820434012,4.08275,2449.4,2448.8,8.16705]
[1730820434215,4.08298,2449.2,2448.7,0.7995]
[1730820434438,4.08264,2449.4,2448.8,7.08356]
[1730820434652,4.08248,2449.5,2448.9,8.16682]
[1730820434869,8.1648,2449.6,2449.0,4.08323]
[1730820435166,4.08288,2449.3,2448.8,3.0]
[1730820435449,4.08326,2449.1,2448.6,3.0]
[1730820435641,4.08326,2449.1,2448.6,7.08396]
[1730820436154,0.7767,2449.2,2448.1,4.08468]
[1730820436329,4.08403,2448.6,2448.1,4.08468]
[1730820436535,0.826,2448.5,2447.9,0.06127913]
[1730820436722,4.91023,2448.5,2447.9,0.06127913]
[1730820437053,4.91023,2448.5,2448.0,4.08496]
[1730820437260,0.826,2448.5,2447.9,4.14625913]
[1730820437551,0.826,2448.5,2448.1,4.08478]
[1730820437728,4.08384,2448.7,2448.2,4.16624976]
[1730820437936,8.9932,2448.9,2448.2,4.08456]
[1730820438122,4.98305,2448.8,2448.2,4.08456]
[1730820438436,4.08389,2448.7,2448.1,4.08478]
[1730820438624,4.08389,2448.7,2448.2,4.08457]
[1730820438833,4.08389,2448.7,2448.1,4.08471]
[1730820439033,0.89932,2448.8,2448.0,3.0]
[1730820439239,4.6339,2448.7,2448.2,0.07226581]
[1730820439556,0.826,2448.9,2448.1,0.07322021]
[1730820439853,0.826,2448.9,2448.5,4.08403]
[1730820440418,4.90955,2448.9,2448.6,0.07267493]
[1730820440620,4.08379,2448.7,2448.2,3.0]
[1730820441154,4.08415,2448.5,2448.0,4.49187291]
[1730820441339,0.55,2448.6,2448.0,0.40696291]
[1730820441340,4.08431,2448.4,2448.0,0.40696291]
[1730820441576,0.7994,2448.3,2448.0,0.40696291]
[1730820441786,4.08463,2448.2,2448.0,0.40696291]
[1730820441949,4.0848,2448.1,2448.0,0.40696291]
[1730820442292,4.08574,2447.6,2446.9,1.23691494]
[1730820442588,4.08574,2447.6,2447.1,4.08644]
[1730820442763,4.6358,2447.5,2446.9,4.0867]
[1730820442958,4.6358,2447.5,2446.9,4.08669]
[1730820443458,5.587894,2447.5,2447.0,3.0]
[1730820443670,4.08614,2447.3,2446.7,8.17414]
[1730820443886,4.08597,2447.4,2446.8,4.08686]
[1730820444170,4.08597,2447.4,2446.9,4.08679]
[1730820444581,4.08633,2447.2,2446.7,4.08702]
[1730820444793,4.90356,2447.2,2446.6,4.08728]
[1730820445374,4.90356,2447.2,2446.5,4.14871284]
[1730820445375,4.08668,2447.0,2446.5,4.0874]
[1730820445595,4.08668,2447.0,2446.0,5.05860165]
[1730820445898,0.7554,2447.1,2446.0,5.05860165]
[1730820445899,0.7554,2447.1,2446.6,4.0872]
[1730820446195,1.22416026,2447.1,2446.6,4.0872]
[1730820446349,1.22416026,2447.1,2446.6,8.1744]
[1730820446547,0.7554,2447.1,2446.6,4.0872]
[1730820446783,0.7887,2447.4,2447.0,4.08661]
[1730820447393,0.7887,2447.4,2447.0,4.08654]
[1730820447685,0.7887,2447.4,2446.6,4.08714]
[1730820447888,4.08623,2447.3,2446.6,4.08714]
[1730820448060,8.659993,2447.3,2446.7,4.08713]
[1730820448256,4.573723,2447.3,2446.7,4.08713]
[1730820448674,0.55,2447.2,2446.8,4.08688]
[1730820448874,0.55,2447.2,2446.9,4.08678]
[1730820449187,0.55,2447.2,2446.8,4.08694]
[1730820449487,4.08647,2447.1,2446.6,4.08728]
[1730820449707,1.1412413,2447.2,2446.5,4.08735]
[1730820449872,1.1412413,2447.2,2446.8,4.08696]
[1730820450254,0.7642,2447.9,2446.9,4.08668]
[1730820450554,0.7642,2447.9,2446.8,5.44883144]
[1730820450555,4.08533,2447.8,2447.2,8.17242]
[1730820450754,4.08533,2447.8,2447.2,4.08621]
[1730820450993,0.7642,2447.9,2447.2,4.0862]
[1730820451168,4.84944,2447.9,2447.3,4.08604]
[1730820451353,0.893449,2447.8,2447.3,4.08604]
[1730820451693,0.893449,2447.8,2447.2,4.0862]
[1730820451694,0.55,2447.7,2447.2,4.0862]
[1730820452398,0.55,2447.7,2447.2,8.1724]
[1730820452691,0.55,2447.7,2447.2,4.0862]
[1730820452894,0.55,2447.7,2447.2,8.17241]
[1730820453065,1.1792969,2447.7,2447.3,4.08598]
[1730820453270,0.55,2447.7,2447.1,4.08631]
[1730820453462,0.55,2447.7,2447.2,4.08626]
[1730820453653,0.55,2447.8,2447.3,4.08613]
[1730820453895,4.8495,2447.9,2447.3,0.07607423]
[1730820453896,0.7642,2447.9,2447.3,0.07607423]
[1730820454199,2.46132336,2449.4,2447.3,0.07607423]
[1730820454200,0.7772,2448.2,2447.3,4.08609]
[1730820454357,4.08531,2447.8,2447.3,4.086]
[1730820454552,0.7772,2448.2,2447.4,0.07506807]
[1730820454553,4.8426,2447.5,2447.4,0.07506807]
[1730820454992,0.7568,2447.5,2446.6,4.66230314]
[1730820455208,0.7568,2447.5,2447.1,8.17284]
[1730820455500,4.09485,2448.1,2446.6,4.0873]
[1730820455501,0.8322,2447.9,2447.5,4.08575]
[1730820455692,0.8322,2447.9,2447.6,4.08559]
[1730820455913,0.8322,2447.9,2447.7,0.07267419]
[1730820456060,0.8322,2447.9,2447.4,8.17172]
[1730820456260,0.8322,2447.9,2447.5,4.0857]
[1730820456471,0.8322,2447.9,2447.5,4.15859244]
[1730820456670,5.409056,2447.9,2447.5,0.07289244]
[1730820456991,1.323926,2447.9,2447.5,4.15867244]
[1730820457195,4.08473,2448.2,2447.6,4.08551]
[1730820457413,0.8321,2448.2,2447.8,4.08521]
[1730820457760,0.8321,2448.2,2447.9,0.07241203]
[1730820457973,4.91676,2448.2,2447.9,0.07241203]
[1730820458168,1.732216,2448.2,2447.9,0.07241203]
[1730820458385,1.732216,2448.2,2447.8,4.08526]
[1730820458581,5.816866,2448.2,2447.7,4.08538]
[1730820458786,5.816866,2448.2,2447.6,4.08548]
[1730820458787,0.8321,2448.2,2447.9,0.07241203]
[1730820458961,0.8321,2448.2,2447.8,4.15782113]
[1730820459298,0.8321,2448.2,2447.9,0.07241203]
[1730820459601,0.8281,2448.5,2448.0,4.62203144]
[1730820459814,0.8281,2448.5,2448.1,4.08478]
[1730820460105,0.8281,2448.5,2448.1,4.15680785]
[1730820460456,0.8281,2448.5,2448.1,0.07202785]
[1730820460457,5.403446,2448.5,2448.1,0.07202785]
[1730820460708,4.08431,2448.4,2448.1,0.07202785]
[1730820460996,4.08431,2448.4,2447.6,8.17108]
[1730820460997,0.55,2448.3,2447.6,8.17108]
[1730820461195,0.55,2448.3,2448.2,0.07185532]
[1730820461383,4.63446,2448.3,2448.2,0.07185532]
[1730820461559,0.55,2448.1,2447.4,4.9196813]
[1730820461755,0.55,2448.1,2447.6,4.08559]
[1730820461756,4.6348,2448.1,2447.6,4.08559]
[1730820461970,4.6348,2448.1,2447.7,4.08546]
[1730820461971,0.55,2448.1,2447.7,4.08546]
[1730820462167,0.55,2448.1,2447.6,8.17111]
[1730820462367,4.6348,2448.1,2447.6,4.08552]
[1730820462568,0.7706,2448.0,2447.6,4.08552]
[1730820462983,0.7706,2448.0,2447.6,8.17103]
[1730820463192,0.7706,2448.0,2447.6,4.08551]
[1730820463560,0.7706,2448.0,2447.4,4.1678513]
[1730820463561,0.55,2447.9,2447.4,4.1678513]
[1730820463763,0.55,2447.9,2447.6,4.08552]
[1730820465558,0.55,2447.9,2447.5,4.08579]
[1730820465761,1.18779149,2447.9,2447.5,4.08579]
[1730820465986,1.18779149,2447.9,2447.5,4.0857]
[1730820466202,1.18779149,2447.9,2447.4,4.1678113]
[1730820466388,4.08547,2447.7,2447.4,0.0820013]
[1730820466574,0.958547,2447.6,2447.4,0.0820013]
[1730820467113,5.4672,2447.5,2447.4,0.0820013]
[1730820467466,0.55,2447.3,2446.7,4.087]
[1730820467691,4.63625,2447.3,2446.8,4.08696]
[1730820467862,4.08681,2446.9,2446.2,4.08788]
[1730820468067,0.463681,2446.8,2446.4,4.0876]
[1730820468974,0.463681,2446.8,2446.2,4.08787]
[1730820468975,0.55,2446.7,2446.2,4.0878]
[1730820469301,4.8902,2446.6,2446.0,4.08818]
[1730820469491,0.8029,2446.6,2446.3,0.07447629]
[1730820469697,5.590208,2446.5,2446.0,4.08818]
[1730820470009,5.590208,2446.5,2446.4,0.0744257]
[1730820470206,5.590208,2446.5,2445.4,4.08925]
[1730820470207,0.7532,2446.1,2445.4,4.08925]
[1730820470406,0.55,2446.0,2445.6,4.08891]
[1730820470612,0.55,2446.0,2445.5,4.08914]
[1730820470780,0.55,2446.0,2445.6,4.08886]
[1730820470781,0.539134,2446.0,2445.6,4.08886]
[1730820471109,0.55,2446.0,2445.6,4.08886]
[1730820471673,0.7532,2446.1,2445.7,4.0887]
[1730820473393,0.7532,2446.1,2445.8,4.08863]
[1730820473892,0.55,2446.0,2445.6,4.08887]
[1730820474472,0.55,2445.7,2445.3,0.13993166]
[1730820474672,1.092298,2445.7,2445.3,0.13993166]
[1730820474917,4.63882,2445.7,2445.3,0.0600634]
[1730820475119,0.7842,2445.4,2445.3,0.0600634]
[1730820475270,5.42312,2445.7,2445.3,0.0600634]
[1730820475474,4.08897,2445.6,2445.3,0.0600634]
[1730820475875,0.55,2445.5,2445.3,0.0600634]
[1730820476110,0.7842,2445.7,2445.3,0.0600634]
[1730820476311,0.7852,2446.0,2445.6,4.08881]
[1730820476516,0.7852,2446.0,2445.5,4.08911]
[1730820476517,4.87359,2446.0,2445.5,4.08911]
[1730820476809,4.87359,2446.0,2445.7,0.07519053]
[1730820476810,0.7852,2446.0,2445.7,0.07519053]
[1730820477009,0.7852,2446.0,2445.6,0.07529982]
[1730820477230,0.7668,2446.3,2445.8,0.07691918]
[1730820477378,0.7668,2446.3,2445.9,4.08833]
[1730820477578,0.7668,2446.3,2445.9,4.16513011]
[1730820477811,0.7668,2446.3,2445.9,8.25350011]
[1730820478113,4.85461,2446.3,2445.9,0.07680011]
[1730820478310,4.98222,2446.2,2445.7,4.08867]
[1730820478516,0.89424,2446.2,2446.0,0.07669084]
[1730820478678,0.7668,2446.3,2445.8,4.08855]
[1730820478880,0.7668,2446.3,2446.1,0.07658158]
[1730820479107,0.7668,2446.3,2445.9,4.08838]
[1730820479449,4.8542,2446.6,2446.2,0.07647233]
[1730820479746,4.08776,2446.4,2446.3,0.07636309]
[1730820479903,4.08776,2446.4,2445.8,8.17696]
[1730820480105,4.08776,2446.4,2446.3,0.07636309]
[1730820480306,4.08776,2446.4,2445.9,4.08842]
[1730820480505,4.08776,2446.4,2446.3,0.07636309]
[1730820480719,0.55,2446.3,2445.9,4.08842]
[1730820481354,0.55,2446.3,2446.0,4.08822]
[1730820481519,0.55,2446.3,2445.9,4.08838]
[1730820481714,0.7668,2446.6,2446.2,4.0879]
[1730820481919,4.0875,2446.5,2446.0,8.17638]
[1730820482232,0.7668,2446.6,2445.6,4.08888]
[1730820482233,4.08807,2446.2,2445.6,4.08888]
[1730820482433,4.08839,2446.0,2445.5,4.08912]
[1730820482742,4.08839,2446.0,2445.5,4.08904]
[1730820482907,0.55,2445.9,2445.4,4.08928]
[1730820483106,0.55,2445.9,2445.5,4.08904]
[1730820483406,0.55,2445.9,2445.3,0.0600634]
[1730820483407,0.55,2445.4,2445.3,0.0600634]
[1730820483619,4.08881,2445.7,2445.4,4.08931]
[1730820483620,0.55,2445.7,2445.4,4.08931]
[1730820483842,0.7888,2445.8,2445.4,4.08924]
[1730820484054,8.99489,2446.1,2445.5,4.08905]
[1730820484233,8.99489,2446.1,2445.8,4.08861]
[1730820484234,0.8185,2446.1,2445.8,4.08861]
[1730820484443,12.560711,2446.8,2445.8,4.08853]
[1730820484444,0.8185,2446.4,2445.8,4.08853]
[1730820484642,1.309107,2446.4,2446.0,4.08828]
[1730820484941,1.309107,2446.4,2446.1,0.07658158]
[1730820485152,4.08784,2446.3,2446.1,0.07658158]
[1730820485305,4.08784,2446.3,2445.8,4.0885]
[1730820485507,4.08784,2446.3,2446.2,0.07647233]
[1730820485848,4.83462015,2446.3,2445.8,4.0885]
[1730820486144,0.74678015,2446.3,2445.8,4.0885]
[1730820486356,0.74678015,2446.3,2445.9,4.16525011]
[1730820486504,1.309107,2446.4,2446.0,4.0883]
[1730820486710,1.309107,2446.4,2446.0,0.0764365]
[1730820486905,4.0878,2446.3,2445.8,4.08849]
[1730820487122,4.0878,2446.3,2446.1,0.07625879]
[1730820487352,4.08832,2446.0,2445.5,4.08911]
[1730820487670,0.8241,2446.1,2445.7,4.08871]
[1730820489145,4.91228,2446.1,2445.5,4.08897]
[1730820489441,0.8241,2446.1,2445.7,4.08866]
[1730820489649,0.8241,2446.1,2445.8,4.08863]
[1730820490211,0.8241,2446.1,2445.7,8.17736]
[1730820490633,0.8241,2446.1,2445.7,4.08866]
[1730820491731,4.91224,2446.1,2445.7,4.08866]
[1730820491920,4.91224,2446.1,2445.5,4.08904]
[1730820491921,4.0883,2446.0,2445.5,4.08904]
[1730820492123,4.0883,2446.0,2445.6,4.08897]
[1730820492354,4.0883,2446.0,2445.5,4.08904]
[1730820492852,4.0883,2446.0,2445.5,8.17809]
[1730820493148,1.724123,2446.1,2445.6,4.08886]
[1730820493351,5.2195913,2446.0,2445.6,4.08896]
[1730820493560,4.91232,2446.1,2445.6,4.08896]
[1730820493764,4.91232,2446.1,2445.7,4.08875]
[1730820493765,0.8241,2446.1,2445.7,4.08875]
[1730820494134,0.8241,2446.1,2445.6,4.08887]
[1730820494338,4.08891,2445.7,2445.3,0.0600634]
[1730820494634,4.63897,2445.6,2445.3,0.0600634]
[1730820494838,4.08916,2445.5,2445.3,0.0600634]
[1730820495055,4.08916,2445.5,2445.4,0.07447462]
[1730820495269,5.40566,2445.5,2445.4,0.07447462]
[1730820495444,6.355124,2445.5,2445.3,0.0600634]
[1730820495767,4.63931,2445.4,2445.3,0.0600634]
[1730820496382,5.40581,2445.4,2445.3,0.0600634]
[1730820496581,8.40581,2445.4,2445.3,0.0600634]
[1730820496889,8.40581,2445.4,2444.1,0.0600634]
[1730820496890,0.55,2444.3,2444.1,0.0600634]
[1730820497172,0.7665,2444.4,2444.1,0.0600634]
[1730820497535,0.55,2444.3,2444.1,0.0600634]
[1730820497732,0.7665,2444.4,2444.1,0.0600634]
[1730820497984,4.09037,2444.8,2444.1,4.1515234]
[1730820497985,0.8048,2444.7,2444.1,4.1515234]
[1730820498275,0.8048,2444.7,2444.1,0.0600634]
[1730820498635,4.89535,2444.7,2444.1,0.0600634]
[1730820498831,0.8048,2444.7,2444.2,4.09121]
[1730820499072,0.8048,2444.7,2444.2,0.07628998]
[1730820499280,4.64075,2444.6,2444.2,0.07628998]
[1730820499439,0.55,2444.6,2444.2,0.07628998]
[1730820500151,0.8048,2444.7,2444.2,4.16751998]
[1730820500554,0.8048,2444.7,2444.3,4.09114]
[1730820500749,0.8048,2444.7,2444.4,4.09098]
[1730820500951,0.55,2444.9,2444.5,4.09078]
[1730820501153,0.55,2444.9,2444.5,4.16700068]
[1730820501464,0.8005,2445.3,2444.7,4.09037]
[1730820501639,4.08975,2445.2,2444.8,0.07585343]
[1730820501839,0.8005,2445.3,2444.4,4.09089]
[1730820502039,4.08964,2445.2,2444.5,0.07609852]
[1730820502273,0.8005,2445.3,2444.9,4.09012]
[1730820502475,0.8005,2445.3,2444.7,4.09033]
[1730820502684,1.289492,2445.3,2444.8,4.0903]
[1730820502842,4.09008,2445.0,2444.8,0.07577037]
[1730820503041,4.09008,2445.0,2444.5,4.0908]
[1730820503340,4.09008,2445.0,2444.6,0.07598913]
[1730820503775,4.86338,2444.7,2444.6,0.07598913]
[1730820503993,0.55,2444.6,2444.1,0.0600634]
[1730820504142,4.64131,2444.2,2444.1,0.0600634]
[1730820504343,0.55,2444.2,2444.1,0.0600634]
[1730820504643,4.86341,2444.7,2444.1,0.0600634]
[1730820504644,4.09089,2444.5,2444.1,0.0600634]
[1730820504979,4.09109,2444.4,2444.1,0.0600634]
[1730820505194,0.7729,2444.7,2444.1,0.0600634]
[1730820505195,0.55,2444.6,2444.1,0.0600634]
[1730820505342,0.55,2444.3,2444.1,0.0600634]
[1730820506081,4.09131,2444.2,2444.1,0.0600634]
[1730820506240,9.196521,2444.3,2444.1,0.0600634]
[1730820506440,4.09131,2444.2,2444.1,0.0600634]
[1730820506642,5.105251,2444.3,2444.1,0.0600634]
[1730820506944,0.7644,2444.2,2444.1,0.0600634]
[1730820507775,4.91253,2444.5,2444.1,0.0600634]
[1730820507980,4.91251,2444.5,2444.1,0.0600634]
[1730820508140,4.0911,2444.4,2444.1,0.0600634]
[1730820508346,0.55,2444.3,2444.1,0.0600634]
[1730820508874,0.55,2444.4,2444.1,0.0600634]
[1730820509044,4.64131,2444.2,2444.1,0.0600634]
[1730820509240,5.46691,2444.2,2444.1,0.0600634]
[1730820509444,7.38750595,2444.2,2444.1,0.0600634]
[1730820512657,10.38750595,2444.2,2444.1,0.0600634]
[1730820513196,9.55148,2444.1,2444.0,1e-05]
[1730820513481,5.42152,2443.6,2443.5,0.005]
[1730820513695,1.3292,2443.6,2443.5,0.005]
[1730820513857,0.55,2443.6,2443.5,0.005]
[1730820514245,0.55,2443.7,2443.5,0.08380534]
[1730820514546,0.55,2443.7,2443.6,0.07869586]
[1730820514774,4.87027,2444.1,2443.6,0.07869586]
[1730820514960,0.7787,2444.6,2443.6,0.07869586]
[1730820515146,4.09062,2444.7,2443.7,0.7526]
[1730820515343,4.09074,2444.6,2443.8,4.58433259]
[1730820515588,1.74081753,2444.9,2443.8,0.07842312]
[1730820515589,4.84449,2444.4,2443.8,0.07842312]
[1730820515772,4.09126,2444.3,2443.8,0.07842312]
[1730820515946,4.09126,2444.3,2443.6,4.09227]
[1730820515947,0.7535,2444.4,2443.6,4.09227]
[1730820516144,4.8445,2444.4,2443.9,0.07831366]
[1730820516444,4.8445,2444.4,2443.6,4.09219]
[1730820516445,4.09117,2444.3,2443.6,4.09219]
[1730820516703,4.09117,2444.3,2444.0,0.07820421]
[1730820517004,4.09117,2444.3,2443.7,4.17067258]
[1730820517210,0.7535,2444.4,2444.1,0.07809477]
[1730820517365,4.09126,2444.3,2443.7,4.09213]
[1730820517570,4.09126,2444.3,2444.2,0.07798534]
[1730820517767,4.86427,2444.7,2444.0,4.09162]
[1730820517993,4.86427,2444.7,2444.2,0.07798534]
[1730820517994,4.09071,2444.6,2444.2,0.07798534]
[1730820518164,0.7737,2444.7,2444.0,0.490882]
[1730820518370,0.7737,2444.7,2444.3,0.07787592]
[1730820518563,4.09098,2444.4,2443.8,4.09189]
[1730820518798,8.18205,2444.4,2443.8,4.09189]
[1730820518968,4.09078,2444.6,2443.9,4.09169]
[1730820519401,0.7737,2444.7,2443.8,0.897431]
[1730820519402,0.7737,2444.7,2444.1,4.09132]
[1730820519905,4.09039,2444.8,2444.3,4.0911]
[1730820520266,4.86646,2445.0,2444.3,4.0911]
[1730820520267,4.09017,2444.9,2444.3,4.0911]
[1730820520465,4.86646,2445.0,2444.4,4.09089]
[1730820520670,0.7764,2445.0,2444.4,4.09089]
[1730820521068,0.7764,2445.0,2444.5,4.09072]
[1730820521317,4.86638,2445.0,2444.5,4.09072]
[1730820521523,4.09023,2444.9,2444.4,4.09089]
[1730820522073,4.09015,2444.9,2444.4,4.09085]
[1730820522673,4.09015,2444.9,2444.2,4.89071]
[1730820522674,4.09033,2444.8,2444.3,4.09114]
[1730820522974,4.64041,2444.8,2444.3,4.09101]
[1730820523925,0.55,2444.8,2444.4,4.0909]
[1730820524086,8.95657,2445.0,2444.4,4.09089]
[1730820524306,5.535887,2444.9,2444.4,4.09096]
[1730820524998,5.535887,2444.9,2444.3,4.09101]
[1730820524999,0.55,2444.9,2444.5,4.09078]
[1730820525202,0.55,2444.9,2444.5,4.0907]
[1730820525595,4.63983,2445.1,2444.5,4.0907]
[1730820525799,4.09014,2444.9,2444.5,4.0907]
[1730820526121,8.7298,2445.1,2444.5,4.0907]
[1730820526320,5.6432592,2445.1,2444.5,4.0907]
[1730820526506,0.55,2444.9,2444.5,4.0907]
[1730820526829,0.55,2444.9,2444.6,4.0906]
[1730820527029,0.55,2445.0,2444.6,4.0906]
[1730820527250,0.55,2445.0,2444.7,4.09047]
[1730820527730,5.98699475,2445.4,2445.0,4.08995]
[1730820527731,0.98699475,2445.4,2445.0,4.08995]
[1730820527934,4.08955,2445.3,2444.8,4.86959]
[1730820528629,4.08955,2445.3,2444.7,4.09035]
[1730820528941,4.08964,2445.2,2444.8,0.07731918]
[1730820529120,4.08964,2445.2,2444.7,4.09034]
[1730820529338,4.08964,2445.2,2444.9,0.07689707]
[1730820529555,5.09630442,2445.2,2444.7,4.09034]
[1730820529712,1.00666442,2445.2,2445.0,0.07678772]
[1730820530045,5.09632442,2445.2,2444.7,4.09047]
[1730820530251,5.64632442,2445.2,2445.1,0.07667837]
[1730820530462,5.64632442,2445.2,2444.7,4.09047]
[1730820530623,5.64632442,2445.2,2445.1,0.07667837]
[1730820530814,5.64632442,2445.2,2444.6,8.18114]
[1730820530815,0.55,2445.1,2444.6,8.18114]
[1730820531019,1.52358244,2445.1,2444.6,8.18114]
[1730820531221,1.52358244,2445.1,2444.0,0.01]
[1730820531222,0.7634,2444.6,2444.0,4.09165]
[1730820531443,4.85405,2444.6,2443.9,0.8191]
[1730820531638,4.09082,2444.5,2443.9,0.8191]
[1730820531853,4.85405,2444.6,2443.9,0.8191]
[1730820532058,4.85405,2444.6,2443.9,4.91091]
[1730820532248,4.85405,2444.6,2444.0,4.09163]
[1730820532446,0.55,2444.5,2443.9,0.8191]
[1730820532646,4.85414,2444.6,2444.0,4.09151]
[1730820532934,4.09101,2444.4,2443.9,0.8191]
[1730820533273,0.55,2444.5,2443.5,0.7856]
[1730820533473,0.55,2444.5,2443.5,0.005]
[1730820533474,0.55,2443.6,2443.5,0.005]
[1730820533785,5.185387,2443.6,2443.5,0.005]
[1730820538358,4.635387,2443.6,2443.5,0.005]
[1730820538633,0.543067,2443.6,2443.5,0.005]
[1730820538834,4.09232,2443.6,2443.5,0.005]
[1730820539089,4.09232,2443.6,2443.5,0.08342904]
[1730820539373,4.09232,2443.6,2443.5,0.08340948]
[1730820539732,4.09217,2443.7,2443.5,0.08340948]
[1730820539935,4.09232,2443.6,2443.5,0.08340948]
[1730820540342,4.09217,2443.7,2443.5,0.08340948]
[1730820540538,4.0919,2443.9,2443.5,0.08340948]
[1730820540837,4.85819,2444.1,2443.5,0.005]